bitfinex-derivatives/quotes_SOLF0:USTF0_20250529
["timestamp","ask_amount","ask_price","bid_price","bid_amount"]
[1748552179211,0.03912017,167.38,167.35,0.04069591]
[1748552179806,0.03912017,167.38,167.37,5.9745]
[1748552181117,5.9731,167.41,167.38,5.9738]
[1748552182214,5.9731,167.41,167.38,6.01853425]
[1748552183316,29.94,167.47,167.38,0.04473425]
[1748552183616,10.00872662,167.46,167.38,0.04473425]
[1748552184506,5.9731,167.41,167.38,0.04473425]
[1748552184711,10.00872662,167.46,167.38,0.04473425]
[1748552184911,29.94,167.45,167.38,0.04473425]
[1748552185107,5.9737,167.39,167.38,0.04473425]
[1748552217444,35.9137,167.39,167.38,0.04473425]
[1748552223144,5.9761,167.33,167.31,3.8324]
[1748552223346,5.10041528,167.35,167.31,3.8324]
[1748552223540,5.10041528,167.35,167.28,29.94]
[1748552223541,5.10041528,167.33,167.28,29.94]
[1748552223745,5.10041528,167.33,167.28,5.9775]
[1748552224147,0.04252011,167.32,167.29,0.04449258]
[1748552225048,5.9769,167.3,167.29,0.04449258]
[1748552240360,5.9787,167.26,167.22,29.92]
[1748552240751,5.9787,167.26,167.2,5.10041528]
[1748552240954,5.9787,167.26,167.22,5.9795]
[1748552241460,6.02472447,167.26,167.22,6.02125042]
[1748552243455,5.9787,167.25,167.22,6.02125042]
[1748552243661,5.10041528,167.25,167.22,0.04175042]
[1748552243961,5.9793,167.24,167.22,0.04175042]
[1748552245356,5.9794,167.23,167.22,0.04175042]
[1748552246160,5.9793,167.24,167.22,0.04175042]
[1748552246362,5.10041528,167.25,167.23,5.9794]
[1748552247160,11.07941528,167.25,167.22,6.02145042]
[1748552248068,5.10041528,167.25,167.23,5.9794]
[1748552251664,0.04602447,167.26,167.22,0.04175042]
[1748552251864,0.04602447,167.26,167.22,5.1421657]
[1748552252069,0.04602447,167.26,167.25,5.9787]
[1748552254065,0.04602447,167.26,167.24,5.9789]
[1748552258174,0.04602447,167.26,167.25,5.9787]
[1748552258867,29.94,167.3,167.28,5.9775]
[1748552259068,5.9767,167.31,167.28,5.9775]
[1748552259268,5.9767,167.31,167.24,5.10041528]
[1748552259468,5.977,167.3,167.24,5.10041528]
[1748552259866,0.04134415,167.29,167.26,5.9781]
[1748552260771,6.01884415,167.29,167.26,11.07851528]
[1748552262272,5.9779,167.28,167.26,5.10041528]
[1748552262472,0.04134415,167.29,167.26,5.10041528]
[1748552265274,5.10041528,167.28,167.25,0.04110363]
[1748552266075,5.9784,167.26,167.25,0.04110363]
[1748552268777,5.10041528,167.28,167.25,0.04110363]
[1748552268778,5.9781,167.27,167.25,0.04110363]
[1748552269873,5.9784,167.26,167.25,0.04110363]
[1748552274079,11.07881528,167.26,167.25,0.04110363]
[1748552275984,5.9784,167.26,167.25,0.04110363]
[1748552277878,5.9782,167.27,167.25,0.04110363]
[1748552278085,29.96134415,167.29,167.25,0.04110363]
[1748552279478,5.9781,167.27,167.25,6.01980363]
[1748552279881,0.04134415,167.29,167.26,5.9784]
[1748552280281,0.04134415,167.29,167.25,0.04110363]
[1748552280587,5.9779,167.28,167.25,0.04110363]
[1748552281888,5.9779,167.28,167.26,5.9784]
[1748552282084,5.9779,167.28,167.25,0.04110363]
[1748552283895,0.04134415,167.29,167.25,0.04110363]
[1748552285197,6.01884415,167.29,167.26,5.9782]
[1748552286992,6.01884415,167.29,167.25,0.04110363]
[1748552287298,5.9777,167.28,167.25,0.04110363]
[1748552287896,5.9777,167.28,167.26,5.9782]
[1748552288397,6.01884415,167.29,167.26,5.9782]
[1748552294104,0.04134415,167.29,167.26,5.9782]
[1748552295604,0.04134415,167.29,167.25,6.01980363]
[1748552296203,5.9779,167.28,167.25,6.01980363]
[1748552297410,6.01884415,167.29,167.25,6.01980363]
[1748552301116,5.9777,167.28,167.25,6.01980363]
[1748552305923,5.9777,167.28,167.26,5.9782]
[1748552307025,0.04134415,167.29,167.25,0.04110363]
[1748552307224,5.10570014,167.28,167.25,0.04110363]
[1748552307724,0.04134415,167.29,167.25,0.04110363]
[1748552308321,6.01884415,167.29,167.25,6.01970363]
[1748552309023,5.9777,167.28,167.25,6.01970363]
[1748552310816,0.04134415,167.29,167.26,5.9783]
[1748552312023,6.01884415,167.29,167.25,6.01970363]
[1748552313932,6.01884415,167.29,167.26,5.9783]
[1748552315930,0.04134415,167.29,167.25,0.04110363]
[1748552316629,6.01884415,167.29,167.26,5.9781]
[1748552318632,0.04134415,167.29,167.27,5.978]
[1748552321133,6.01874415,167.29,167.27,5.978]
[1748552321330,6.01874415,167.29,167.25,0.04110363]
[1748552322532,6.01874415,167.29,167.26,5.9782]
[1748552323736,0.04134415,167.29,167.27,5.978]
[1748552324837,6.01874415,167.29,167.27,5.978]
[1748552325136,6.01874415,167.29,167.26,5.9783]
[1748552330640,0.04134415,167.29,167.25,0.04110363]
[1748552331148,6.01884415,167.29,167.26,5.9782]
[1748552331346,0.04134415,167.29,167.26,5.9782]
[1748552331744,0.04134415,167.29,167.25,6.01970363]
[1748552332048,0.04134415,167.29,167.25,0.04110363]
[1748552332849,5.10570014,167.28,167.25,0.04110363]
[1748552333647,5.9784,167.26,167.25,0.04110363]
[1748552334547,5.10570014,167.28,167.25,0.04110363]
[1748552334747,29.92134415,167.29,167.25,0.04110363]
[1748552335347,5.9779,167.28,167.25,0.04110363]
[1748552339545,5.9779,167.28,167.25,6.01980363]
[1748552344051,6.01884415,167.29,167.25,6.01980363]
[1748552345162,5.9777,167.28,167.25,6.01980363]
[1748552345658,5.9777,167.28,167.26,5.9784]
[1748552348665,5.9777,167.28,167.25,6.01970363]
[1748552353271,5.9777,167.28,167.26,5.9783]
[1748552355167,5.9777,167.28,167.25,0.04110363]
[1748552355168,0.04134415,167.29,167.28,5.9777]
[1748552364678,0.04134415,167.29,167.25,29.90110363]
[1748552364877,0.04134415,167.29,167.25,35.00680377]
[1748552365580,6.01884415,167.29,167.26,5.9782]
[1748552365979,0.04134415,167.29,167.25,35.00680377]
[1748552366482,5.9777,167.28,167.25,40.98530377]
[1748552366780,0.04134415,167.29,167.25,40.98530377]
[1748552367080,6.01894415,167.29,167.25,40.98530377]
[1748552368081,6.01894415,167.29,167.26,5.9783]
[1748552373481,0.04134415,167.29,167.27,5.978]
[1748552376091,0.04134415,167.29,167.28,5.9777]
[1748552376478,0.04134415,167.29,167.25,5.14680377]
[1748552376678,0.04134415,167.29,167.26,5.9783]
[1748552378090,0.04134415,167.29,167.27,5.978]
[1748552379194,0.04134415,167.29,167.28,5.9777]
[1748552379992,0.04134415,167.29,167.27,5.9779]
[1748552380295,0.04134415,167.29,167.25,5.14680377]
[1748552380494,0.04134415,167.29,167.27,5.9778]
[1748552382995,0.04134415,167.29,167.28,5.9777]
[1748552383490,0.04134415,167.29,167.25,5.14680377]
[1748552384299,0.04134415,167.29,167.27,5.9778]
[1748552387799,6.01874415,167.29,167.27,5.9778]
[1748552390503,0.04134415,167.29,167.27,5.9778]
[1748552393712,6.01884415,167.29,167.26,5.9782]
[1748552394008,6.01884415,167.29,167.25,0.04110363]
[1748552394711,5.9777,167.28,167.26,5.9783]
[1748552394909,0.04134415,167.29,167.25,0.04110363]
[1748552395607,6.01884415,167.29,167.27,5.9778]
[1748552396308,0.04134415,167.29,167.28,5.9777]
[1748552397912,0.04134415,167.29,167.27,5.9779]
[1748552400113,0.04134415,167.29,167.28,5.9777]
[1748552402116,0.04134415,167.29,167.26,5.10436446]
[1748552402416,6.01894415,167.29,167.26,5.10436446]
[1748552402813,6.01894415,167.29,167.26,5.9782]
[1748552406118,0.04134415,167.29,167.25,0.04110363]
[1748552406621,6.01884415,167.29,167.26,5.9782]
[1748552407528,6.01884415,167.29,167.27,5.978]
[1748552408323,0.04134415,167.29,167.28,5.9777]
[1748552414432,0.04134415,167.29,167.27,5.9779]
[1748552415132,0.04134415,167.29,167.28,5.9777]
[1748552415935,0.04134415,167.29,167.26,5.10436446]
[1748552415936,0.04134415,167.29,167.27,5.978]
[1748552416934,6.01874415,167.29,167.27,5.978]
[1748552418930,5.9777,167.28,167.26,11.08266446]
[1748552419829,0.04134415,167.29,167.26,5.10436446]
[1748552420737,6.01884415,167.29,167.27,5.9778]
[1748552429838,6.01884415,167.29,167.26,11.08256446]
[1748552430336,0.04134415,167.29,167.26,5.10436446]
[1748552430537,0.04134415,167.29,167.27,5.9779]
[1748552430941,6.01894415,167.29,167.27,5.9779]
[1748552431534,6.01894415,167.29,167.26,11.08256446]
[1748552431735,5.9777,167.28,167.26,11.08256446]
[1748552432135,6.01894415,167.29,167.26,11.08256446]
[1748552432745,6.01894415,167.29,167.27,5.978]
[1748552433341,0.04134415,167.29,167.28,5.9777]
[1748552433542,0.04134415,167.29,167.26,5.10436446]
[1748552433939,0.04134415,167.29,167.27,5.9779]
[1748552434343,0.04134415,167.29,167.28,11.08206446]
[1748552434547,29.84,167.35,167.28,5.10436446]
[1748552434749,5.9761,167.33,167.3,5.10436446]
[1748552435045,29.84,167.35,167.24,4.003]
[1748552435046,29.84,167.35,167.28,5.10436446]
[1748552435245,5.9768,167.31,167.27,29.84]
[1748552435439,5.10436446,167.34,167.28,5.9776]
[1748552435645,5.10436446,167.34,167.29,0.03910156]
[1748552435847,5.977,167.3,167.29,0.03910156]
[1748552437548,11.08136446,167.3,167.29,0.03910156]
[1748552437752,5.9781,167.27,167.23,1.9867]
[1748552438247,5.9781,167.27,167.23,7.966]
[1748552438844,6.01637332,167.27,167.24,5.9791]
[1748552439047,5.9784,167.26,167.23,2.03265143]
[1748552439748,5.9784,167.26,167.23,8.01195143]
[1748552440048,0.03827332,167.27,167.23,0.04595143]
[1748552440542,0.03827332,167.27,167.23,6.02515143]
[1748552440543,5.9784,167.26,167.23,6.02515143]
[1748552440941,5.9784,167.26,167.23,0.04595143]
[1748552441543,0.03827332,167.27,167.23,0.04595143]
[1748552441945,0.03827332,167.27,167.25,5.9784]
[1748552444051,0.03827332,167.27,167.26,5.9784]
[1748552445052,6.01637332,167.27,167.25,5.9786]
[1748552445747,6.01637332,167.27,167.23,6.02515143]
[1748552446348,0.03827332,167.27,167.23,6.02515143]
[1748552446956,0.03827332,167.27,167.24,5.9789]
[1748552447247,0.03827332,167.27,167.23,0.04595143]
[1748552447448,5.9784,167.26,167.23,0.04595143]
[1748552448256,0.03827332,167.27,167.23,0.04595143]
[1748552448554,5.10436446,167.26,167.23,0.04595143]
[1748552449255,5.9791,167.24,167.23,0.04595143]
[1748552452145,11.08346446,167.24,167.23,0.04595143]
[1748552453052,5.9791,167.24,167.23,0.04595143]
[1748552456452,11.08326446,167.25,167.23,0.04595143]
[1748552456860,5.9791,167.24,167.23,0.04595143]
[1748552460356,29.85827332,167.27,167.23,0.04595143]
[1748552460953,5.9786,167.26,167.23,6.02525143]
[1748552462468,29.85827332,167.27,167.24,5.9791]
[1748552462661,29.85827332,167.27,167.23,5.15031589]
[1748552462963,0.03827332,167.27,167.25,5.9787]
[1748552463165,0.03827332,167.27,167.23,5.15031589]
[1748552463666,0.03827332,167.27,167.25,5.9785]
[1748552465065,0.03827332,167.27,167.26,5.9784]
[1748552465266,0.03827332,167.27,167.23,5.15031589]
[1748552466368,0.03827332,167.27,167.25,5.9785]
[1748552467171,6.01637332,167.27,167.25,5.9785]
[1748552468462,0.03827332,167.27,167.25,5.9785]
[1748552470276,0.03827332,167.27,167.23,5.15031589]
[1748552470773,0.03827332,167.27,167.25,5.9785]
[1748552471374,0.03827332,167.27,167.23,5.15031589]
[1748552471574,0.03827332,167.27,167.26,5.9784]
[1748552474778,29.82,167.33,167.25,5.10436446]
[1748552475071,29.82,167.33,167.28,5.10436446]
[1748552475072,5.9764,167.32,167.28,5.10436446]
[1748552475276,29.82,167.33,167.3,5.9767]
[1748552475470,29.82,167.33,167.28,5.10436446]
[1748552475774,5.10436446,167.35,167.29,0.03978555]
[1748552475976,5.976,167.33,167.31,5.9763]
[1748552476778,5.9758,167.34,167.31,5.9763]
[1748552476984,34.92436446,167.36,167.31,5.9763]
[1748552477476,5.9759,167.33,167.3,11.08116446]
[1748552478780,5.9759,167.33,167.31,5.9766]
[1748552480178,5.9759,167.33,167.3,5.9768]
[1748552481875,5.9759,167.33,167.3,5.9769]
[1748552482473,5.9763,167.32,167.3,5.9769]
[1748552482977,5.9761,167.33,167.3,5.9769]
[1748552484480,5.9761,167.33,167.31,5.9766]
[1748552485281,5.9761,167.33,167.3,5.9769]
[1748552485478,5.9763,167.32,167.29,5.14415001]
[1748552486883,5.9763,167.32,167.3,5.9769]
[1748552489387,5.9767,167.31,167.29,11.12125001]
[1748552489584,5.9767,167.31,167.29,5.14415001]
[1748552489889,5.10436446,167.34,167.29,0.03978555]
[1748552490982,5.9767,167.31,167.29,0.03978555]
[1748552491887,5.9764,167.32,167.29,6.01698555]
[1748552492489,5.9767,167.31,167.29,0.03978555]
[1748552493392,5.9767,167.31,167.29,6.01688555]
[1748552493894,5.9764,167.32,167.29,6.01688555]
[1748552494298,5.10436446,167.34,167.29,0.03978555]
[1748552494503,5.9761,167.33,167.29,0.03978555]
[1748552494795,5.9761,167.33,167.3,5.9768]
[1748552495992,29.82,167.36,167.32,5.9762]
[1748552497195,5.9754,167.35,167.32,5.9762]
[1748552497491,29.82,167.36,167.31,5.9765]
[1748552497693,29.82,167.36,167.29,0.03978555]
[1748552497992,5.9756,167.34,167.31,5.9766]
[1748552502398,5.10436446,167.34,167.29,0.03978555]
[1748552502795,5.9768,167.31,167.29,0.03978555]
[1748552504287,29.82,167.36,167.29,0.03978555]
[1748552504494,34.92436446,167.36,167.29,0.03978555]
[1748552504901,34.92436446,167.36,167.3,5.10436446]
[1748552505189,29.82,167.36,167.3,5.10436446]
[1748552505393,5.9754,167.35,167.32,5.9761]
[1748552507196,29.82,167.36,167.32,5.9761]
[1748552507400,29.82,167.36,167.3,5.10436446]
[1748552507607,546.32,167.39,167.32,5.10436446]
[1748552507796,546.32,167.39,167.35,5.9749]
[1748552507797,5.9742,167.38,167.35,5.9749]
[1748552508191,29.8,167.39,167.34,5.14821034]
[1748552508398,29.8,167.42,167.36,5.10436446]
[1748552508595,29.8,167.42,167.37,0.03890774]
[1748552509404,29.78,167.44,167.38,5.10436446]
[1748552510101,5.9725,167.43,167.39,5.9737]
[1748552510591,5.9728,167.42,167.38,5.974]
[1748552510793,29.78,167.44,167.37,0.03890774]
[1748552511421,1.9491,167.46,167.37,0.03890774]
[1748552511612,4.084,167.48,167.38,29.78]
[1748552511806,7.96432286,167.52,167.41,0.04536386]
[1748552512102,12.04832286,167.52,167.45,0.04316765]
[1748552512496,5.9712,167.46,167.45,0.04316765]
[1748552513300,5.971,167.47,167.45,0.04316765]
[1748552514200,5.9712,167.46,167.45,0.04316765]
[1748552522004,5.971,167.47,167.45,0.04316765]
[1748552522704,29.78,167.48,167.45,0.04316765]
[1748552523213,35.7507,167.48,167.45,0.04316765]
[1748552523808,5.9711,167.47,167.45,0.04316765]
[1748552523999,29.78,167.48,167.45,0.04316765]
[1748552524904,5.9712,167.46,167.45,0.04316765]
[1748552526602,5.9726,167.43,167.38,35.7061]
[1748552527009,7.96432286,167.46,167.35,29.76]
[1748552527610,5.9733,167.41,167.39,0.04335479]
[1748552527807,29.79921494,167.42,167.39,0.04335479]
[1748552528208,5.9734,167.4,167.39,0.04335479]
[1748552538720,5.9734,167.4,167.39,0.04335479]
[1748552539919,5.9731,167.41,167.39,0.04335479]
[1748552540519,29.79921494,167.42,167.39,0.04335479]
[1748552541421,5.973,167.41,167.39,0.04335479]
[1748552542621,5.9734,167.4,167.39,0.04335479]
[1748552554030,5.9732,167.41,167.39,0.04335479]
[1748552554330,5.9734,167.4,167.39,0.04335479]
[1748552554526,29.79921494,167.42,167.39,0.04335479]
[1748552555130,5.9734,167.41,167.39,0.04335479]
[1748552555332,29.79921494,167.42,167.39,0.04335479]
[1748552555827,5.973,167.41,167.39,0.04335479]
[1748552558929,5.9734,167.4,167.39,0.04335479]
[1748552561033,5.9732,167.41,167.39,0.04335479]
[1748552562336,5.9734,167.4,167.39,0.04335479]
[1748552563434,5.9732,167.41,167.39,0.04335479]
[1748552563930,5.9734,167.4,167.39,0.04335479]
[1748552567239,5.9734,167.4,167.32,35.756]
[1748552567240,5.09829666,167.4,167.32,35.756]
[1748552567442,5.09829666,167.38,167.32,35.756]
[1748552567641,5.09829666,167.38,167.34,5.9753]
[1748552568141,5.9748,167.37,167.34,6.02004755]
[1748552568540,5.13950487,167.38,167.34,6.02004755]
[1748552569135,5.9745,167.37,167.34,6.02004755]
[1748552581155,5.13950487,167.38,167.34,6.02004755]
[1748552581859,5.13950487,167.38,167.35,5.9752]
[1748552582961,5.9745,167.37,167.35,5.9752]
[1748552584956,5.9745,167.37,167.34,6.02014755]
[1748552585859,5.9749,167.36,167.34,0.04474755]
[1748552586652,5.9749,167.36,167.34,6.02014755]
[1748552586955,5.9745,167.37,167.34,0.04474755]
[1748552587959,5.9745,167.37,167.35,5.9752]
[1748552597665,5.9745,167.37,167.34,0.04474755]
[1748552597869,5.09829666,167.36,167.34,0.04474755]
[1748552598765,5.09829666,167.37,167.34,6.02014755]
[1748552598965,11.07299666,167.37,167.34,6.02014755]
[1748552599165,5.09829666,167.37,167.34,6.02014755]
[1748552601064,0.04120821,167.38,167.35,5.09829666]
[1748552601271,0.04120821,167.38,167.37,5.09829666]
[1748552601969,0.04120821,167.38,167.37,11.07279666]
[1748552611272,29.76,167.43,167.39,5.9734]
[1748552611481,29.76,167.43,167.37,5.09829666]
[1748552612373,6.01114782,167.42,167.39,5.9735]
[1748552615173,5.9731,167.41,167.38,6.01513151]
[1748552615481,0.03824782,167.42,167.07,22.79843009]
[1748552615482,5.09829666,167.4,167.3,29.74]
[1748552615685,5.09829666,167.38,167.3,29.74]
[1748552615889,5.9755,167.35,167.31,5.9764]
[1748552616582,6.01530877,167.35,167.32,5.9762]
[1748552617875,5.9756,167.34,167.31,0.04375991]
[1748552618276,5.9761,167.33,167.31,0.04375991]
[1748552618471,5.09829666,167.32,167.31,0.04375991]
[1748552619071,11.07449666,167.32,167.31,0.04375991]
[1748552619278,5.09829666,167.32,167.26,35.7183]
[1748552619577,5.9772,167.3,167.27,5.9779]
[1748552620178,6.01651227,167.3,167.27,6.02380693]
[1748552625992,0.03931227,167.3,167.28,5.9776]
[1748552632202,6.01631227,167.3,167.27,6.02380693]
[1748552632500,0.03931227,167.3,167.27,0.04590693]
[1748552632700,0.03931227,167.3,167.28,5.9777]
[1748552639205,0.03931227,167.3,167.29,5.9773]
[1748552642908,0.03931227,167.3,167.28,5.9775]
[1748552643703,0.03931227,167.3,167.29,5.9773]
[1748552647707,0.03931227,167.3,167.28,5.9775]
[1748552650414,6.01631227,167.3,167.28,5.9775]
[1748552650617,5.14255811,167.3,167.27,0.04590693]
[1748552651012,5.9775,167.29,167.27,0.04590693]
[1748552651318,11.08074584,167.29,167.27,0.04590693]
[1748552651808,11.08074584,167.29,167.27,6.02390693]
[1748552654417,0.03931227,167.3,167.27,0.04590693]
[1748552655020,29.72,167.39,167.33,5.9758]
[1748552655323,5.10324584,167.38,167.3,5.10324584]
[1748552655517,5.9747,167.37,167.34,5.9753]
[1748552655920,6.01244015,167.37,167.34,6.0196451]
[1748552656117,0.03774015,167.37,167.35,5.9749]
[1748552659617,0.03774015,167.37,167.36,5.9748]
[1748552660318,29.72,167.42,167.39,5.9737]
[1748552660523,5.9728,167.42,167.39,5.9737]
[1748552660927,5.9728,167.42,167.38,5.974]
[1748552661224,5.9731,167.41,167.38,6.01919472]
[1748552661423,5.9731,167.41,167.38,0.04519472]
[1748552665225,5.9731,167.41,167.38,6.01919472]
[1748552666032,5.9735,167.4,167.38,0.04519472]
[1748552667826,0.04378497,167.42,167.38,0.04519472]
[1748552667827,5.9732,167.41,167.38,0.04519472]
[1748552670133,5.9732,167.41,167.38,6.01919472]
[1748552671032,5.9732,167.41,167.39,5.9737]
[1748552672122,0.04378497,167.42,167.38,0.04519472]
[1748552672731,0.04378497,167.42,167.41,5.973]
[1748552672934,0.04378497,167.42,167.38,0.04519472]
[1748552673633,0.04378497,167.42,167.4,5.9731]
[1748552673832,0.04378497,167.42,167.38,0.04519472]
[1748552675134,0.04378497,167.42,167.41,5.973]
[1748552676635,6.01648497,167.42,167.39,5.9734]
[1748552676938,0.04378497,167.42,167.38,0.04519472]
[1748552677838,14.6632,167.41,167.38,0.04519472]
[1748552679339,8.69,167.41,167.38,6.01909472]
[1748552681634,14.6632,167.41,167.38,6.01909472]
[1748552681837,14.6632,167.41,167.38,0.04519472]
[1748552682136,5.9734,167.4,167.38,0.04519472]
[1748552683143,8.69,167.41,167.38,0.04519472]
[1748552683542,5.9737,167.4,167.38,0.04519472]
[1748552683841,8.69,167.41,167.38,0.04519472]
[1748552684040,5.9737,167.39,167.38,0.04519472]
[1748552690543,46.33861509,167.41,167.3,29.68]
[1748552690741,7.96861509,167.38,167.27,47.95190931]
[1748552690950,29.68,167.37,167.27,47.95190931]
[1748552691147,5.9761,167.33,167.27,47.95190931]
[1748552691643,6.01782649,167.32,167.29,5.9771]
[1748552691846,0.04142649,167.32,167.28,0.04127042]
[1748552692246,5.9767,167.31,167.28,0.04127042]
[1748552692854,5.977,167.3,167.28,0.04127042]
[1748552693052,0.04142649,167.32,167.28,0.04127042]
[1748552694949,5.9772,167.3,167.28,0.04127042]
[1748552698556,13.5467,167.31,167.28,0.04127042]
[1748552703360,5.977,167.3,167.28,0.04127042]
[1748552704862,7.57,167.31,167.28,0.04127042]
[1748552706064,5.9773,167.29,167.28,0.04127042]
[1748552706970,29.68,167.29,167.19,31.6561]
[1748552707870,0.04346312,167.26,167.22,0.04268208]
[1748552708066,6.02196312,167.26,167.22,6.02238208]
[1748552708272,6.02196312,167.26,167.22,0.04268208]
[1748552708670,6.02196312,167.26,167.23,5.9792]
[1748552708972,6.02196312,167.26,167.22,0.04268208]
[1748552708973,0.04346312,167.26,167.22,0.04268208]
[1748552709366,0.04346312,167.26,167.25,5.9787]
[1748552731281,0.04346312,167.26,167.23,38.80971321]
[1748552731482,5.14857633,167.26,167.22,0.04268208]
[1748552731686,0.04346312,167.26,167.22,0.04268208]
[1748552732279,6.02186312,167.26,167.23,5.9794]
[1748552732686,6.02186312,167.26,167.24,5.979]
[1748552735477,6.02186312,167.26,167.23,5.9793]
[1748552739288,5.9787,167.25,167.23,5.9793]
[1748552743597,6.02196312,167.26,167.24,5.9791]
[1748552743792,0.04346312,167.26,167.22,0.04268208]
[1748552744392,0.04346312,167.26,167.23,5.9792]
[1748552745496,6.02206312,167.26,167.23,5.9792]
[1748552746787,5.9788,167.25,167.23,5.9792]
[1748552747392,5.14857633,167.26,167.22,0.04268208]
[1748552747696,5.10511321,167.24,167.22,0.04268208]
[1748552747893,5.9795,167.23,167.22,0.04268208]
[1748552754998,20.30441321,167.24,167.22,0.04268208]
[1748552758394,5.9795,167.23,167.22,0.04268208]
[1748552758606,14.32511321,167.24,167.22,0.04268208]
[1748552759803,20.30441321,167.24,167.22,0.04268208]
[1748552760004,14.32511321,167.24,167.22,0.04268208]
[1748552760596,20.30451321,167.24,167.22,0.04268208]
[1748552763902,14.32511321,167.24,167.17,29.66]
[1748552764100,5.10511321,167.22,167.17,29.66]
[1748552764903,0.04594143,167.21,167.2,5.9805]
[1748552767707,0.04594143,167.21,167.18,0.04156833]
[1748552768411,0.04594143,167.21,167.19,5.9807]
[1748552769416,6.02634143,167.21,167.18,6.02266833]
[1748552770824,5.9807,167.2,167.18,6.02266833]
[1748552773526,6.02614143,167.21,167.18,6.02266833]
[1748552774622,5.9807,167.2,167.18,0.04156833]
[1748552775024,15.8107,167.2,167.18,0.04156833]
[1748552777326,9.83,167.2,167.19,5.9809]
[1748552782528,29.66,167.27,167.18,34.80668154]
[1748552782826,36.71341321,167.3,167.22,5.10511321]
[1748552783129,36.71341321,167.3,167.24,5.9789]
[1748552783328,11.75,167.29,167.24,5.9789]
[1748552783630,0.03932808,167.28,167.25,0.03931553]
[1748552783821,5.9786,167.26,167.25,0.03931553]
[1748552785122,8.08932808,167.28,167.25,0.03931553]
[1748552785522,5.9784,167.26,167.25,0.03931553]
[1748552786127,11.08351321,167.26,167.25,0.03931553]
[1748552786331,5.9799,167.22,167.18,34.76511321]
[1748552786829,5.9799,167.22,167.19,5.9808]
[1748552787225,6.02088653,167.22,167.19,6.0225384]
[1748552788833,6.02088653,167.22,167.2,5.9805]
[1748552789723,0.04098653,167.22,167.2,5.9805]
[1748552790527,0.04098653,167.22,167.21,5.9802]
[1748552820461,10.32,167.23,167.22,5.9798]
[1748552820667,10.32,167.23,167.22,35.5798]
[1748552824969,9.93478774,167.24,167.23,5.9795]
[1748552825264,0.04478774,167.24,167.23,11.08461321]
[1748552846480,0.04478774,167.24,167.23,5.9795]
[1748552846680,0.04478774,167.24,167.23,11.08461321]
[1748552850382,17.24,167.25,167.24,5.9791]
[1748552850577,17.24,167.25,167.23,5.10511321]
[1748552850578,9.76,167.29,167.23,5.10511321]
[1748552850876,9.76,167.29,167.28,5.10511321]
[1748552851075,9.76,167.29,167.28,11.08281321]
[1748552853785,9.76,167.29,167.28,5.10511321]
[1748552854381,9.76,167.29,167.28,11.08281321]
[1748552859887,9.12797294,167.29,167.28,11.08281321]
[1748552860592,9.12797294,167.29,167.28,5.10511321]
[1748552861194,9.12797294,167.29,167.27,0.03862373]
[1748552862403,9.12797294,167.29,167.27,6.01662373]
[1748552863592,9.12797294,167.29,167.27,0.03862373]
[1748552864797,9.12797294,167.29,167.27,6.01642373]
[1748552867297,15.10537294,167.29,167.27,6.01642373]
[1748552868290,23.17537294,167.29,167.27,6.01642373]
[1748552868594,23.17537294,167.29,167.27,0.03862373]
[1748552868595,17.19797294,167.29,167.27,0.03862373]
[1748552869501,17.19797294,167.29,167.27,6.01662373]
[1748552870590,23.17527294,167.29,167.27,6.01662373]
[1748552873708,5.9777,167.28,167.27,0.03862373]
[1748552874102,17.19797294,167.29,167.27,0.03862373]
[1748552874402,23.17547294,167.29,167.27,0.03862373]
[1748552881107,23.17547294,167.29,167.27,6.01662373]
[1748552882008,23.17547294,167.29,167.27,0.03862373]
[1748552884420,5.9777,167.28,167.27,0.03862373]
[1748552891015,23.17547294,167.29,167.27,6.01662373]
[1748552894216,17.19797294,167.29,167.28,5.9777]
[1748552894513,17.19797294,167.29,167.27,0.03862373]
[1748552894914,8.07,167.29,167.27,0.03862373]
[1748552895109,14.0473,167.29,167.27,6.01652373]
[1748552897717,5.10511321,167.39,167.28,34.64511321]
[1748552897919,5.10511321,167.39,167.32,5.10511321]
[1748552898221,29.54,167.41,167.34,5.10511321]
[1748552898415,3.976,167.43,167.36,5.10511321]
[1748552898716,0.04014744,167.41,167.4,5.10511321]
[1748552898922,0.04559059,167.42,167.4,5.10511321]
[1748552899106,0.04559059,167.42,167.4,11.07831321]
[1748552899620,5.1507038,167.42,167.39,0.04233616]